[Event "Late-Titled-Tuesday-Blitz-January-16-2024"]
[Site "Chess.com"]
[Date "2024.01.16"]
[Round "5"]
[White "mbchess97"]
[Black "RichardLeyvaP"]
[Result "0-1"]
[WhiteElo "2384"]
[BlackElo "2528"]
[TimeControl "180+1"]
[EndTime "14:53:09 PST"]
[Termination "RichardLeyvaP won by resignation"]

1. c4 {[%clk 0:03:00.9]} 1... g6 {[%clk 0:02:56.5]} 2. g3 {[%clk 0:03:01.2]}
2... Bg7 {[%clk 0:02:56.8]} 3. Bg2 {[%clk 0:03:01.9]} 3... Nf6 {[%clk
0:02:57.2]} 4. Nc3 {[%clk 0:03:02]} 4... O-O {[%clk 0:02:57.3]} 5. d4 {[%clk
0:03:01.3]} 5... d6 {[%clk 0:02:56.4]} 6. h3 {[%clk 0:03:01.6]} 6... c6 {[%clk
0:02:55.2]} 7. e4 {[%clk 0:02:57.1]} 7... e5 {[%clk 0:02:52.9]} 8. Nf3 {[%clk
0:02:55.5]} 8... Nbd7 {[%clk 0:02:47.4]} 9. O-O {[%clk 0:02:54.4]} 9... Qb6
{[%clk 0:02:46.3]} 10. c5 {[%clk 0:02:46.3]} 10... dxc5 {[%clk 0:02:45.7]} 11.
dxe5 {[%clk 0:02:46]} 11... Ne8 {[%clk 0:02:39.6]} 12. e6 {[%clk 0:02:45.9]}
12... fxe6 {[%clk 0:02:39.1]} 13. Ng5 {[%clk 0:02:44.6]} 13... Ne5 {[%clk
0:02:33.7]} 14. f4 {[%clk 0:02:40]} 14... c4+ {[%clk 0:02:33.6]} 15. Kh2 {[%clk
0:02:31.4]} 15... Nd3 {[%clk 0:02:33.5]} 16. e5 {[%clk 0:02:24.2]} 16... Nc7
{[%clk 0:02:19.9]} 17. Qe2 {[%clk 0:01:59.8]} 17... Nd5 {[%clk 0:02:17.9]} 18.
Nce4 {[%clk 0:01:51.9]} 18... Bd7 {[%clk 0:01:55.8]} 19. b3 {[%clk 0:01:38.8]}
19... Nxc1 {[%clk 0:01:50.7]} 20. Rfxc1 {[%clk 0:01:33.9]} 20... cxb3 {[%clk
0:01:49.6]} 21. axb3 {[%clk 0:01:34.1]} 21... Rae8 {[%clk 0:01:48.9]} 22. Nd6
{[%clk 0:01:22.5]} 22... Re7 {[%clk 0:01:45.8]} 23. Nge4 {[%clk 0:01:10.4]}
23... Bc8 {[%clk 0:01:39]} 24. Nc5 {[%clk 0:01:04.8]} 24... a6 {[%clk 0:01:19]}
25. h4 {[%clk 0:01:01.1]} 25... Qc7 {[%clk 0:00:58.6]} 26. Be4 {[%clk
0:00:53.7]} 26... Rd8 {[%clk 0:00:58.2]} 27. h5 {[%clk 0:00:49.2]} 27... Rxd6
{[%clk 0:00:56.6]} 28. exd6 {[%clk 0:00:48.9]} 28... Qxd6 {[%clk 0:00:56.8]} 29.
hxg6 {[%clk 0:00:47.1]} 29... hxg6 {[%clk 0:00:53.8]} 30. Qg4 {[%clk 0:00:32.7]}
30... Bxa1 {[%clk 0:00:41.8]} 31. Bxg6 {[%clk 0:00:18.5]} 31... Rg7 {[%clk
0:00:20.9]} 32. Ne4 {[%clk 0:00:18.5]} 32... Qf8 {[%clk 0:00:16]} 33. Rxa1
{[%clk 0:00:15.3]} 33... e5 {[%clk 0:00:16.2]} 34. Qh5 {[%clk 0:00:11]} 34...
exf4 {[%clk 0:00:14.1]} 35. Ng5 {[%clk 0:00:10.2]} 35... fxg3+ {[%clk
0:00:14.1]} 36. Kg1 {[%clk 0:00:10.1]} 36... Qf2+ {[%clk 0:00:13.5]} 37. Kh1
{[%clk 0:00:07.9]} 37... g2+ {[%clk 0:00:12.1]} 0-1

[Event "Late-Titled-Tuesday-Blitz-January-16-2024"]
[Site "Chess.com"]
[Date "2024.01.16"]
[Round "5"]
[White "WindWhistler11"]
[Black "AkatsukiLogHorizon"]
[Result "1-0"]
[WhiteElo "2435"]
[BlackElo "2270"]
[TimeControl "180+1"]
[EndTime "14:53:10 PST"]
[Termination "WindWhistler11 won by resignation"]

1. Nf3 {[%clk 0:02:55]} 1... Nf6 {[%clk 0:02:58.9]} 2. c4 {[%clk 0:02:55.9]}
2... g6 {[%clk 0:02:57.6]} 3. g3 {[%clk 0:02:56.8]} 3... Bg7 {[%clk 0:02:57.9]}
4. Bg2 {[%clk 0:02:57.7]} 4... O-O {[%clk 0:02:57.3]} 5. O-O {[%clk 0:02:58]}
5... d5 {[%clk 0:02:57.5]} 6. Nc3 {[%clk 0:02:52.1]} 6... d4 {[%clk 0:02:54]} 7.
Nb5 {[%clk 0:02:51.8]} 7... c5 {[%clk 0:02:51.9]} 8. e3 {[%clk 0:02:51.6]} 8...
a6 {[%clk 0:02:50.4]} 9. Na3 {[%clk 0:02:51.6]} 9... Nc6 {[%clk 0:02:44.7]} 10.
exd4 {[%clk 0:02:47.4]} 10... Nxd4 {[%clk 0:02:43.6]} 11. Nxd4 {[%clk
0:02:43.6]} 11... Qxd4 {[%clk 0:02:42.2]} 12. d3 {[%clk 0:02:38.6]} 12... Rd8
{[%clk 0:02:37.7]} 13. Be3 {[%clk 0:02:28.4]} 13... Qd6 {[%clk 0:02:33.6]} 14.
Qb3 {[%clk 0:02:20.5]} 14... Ng4 {[%clk 0:02:20.7]} 15. Bf4 {[%clk 0:02:18.3]}
15... e5 {[%clk 0:02:17.9]} 16. Bg5 {[%clk 0:02:15.1]} 16... f6 {[%clk
0:02:14.7]} 17. Be3 {[%clk 0:01:58.8]} 17... Nxe3 {[%clk 0:02:08.1]} 18. fxe3
{[%clk 0:01:58.7]} 18... Rb8 {[%clk 0:02:08.7]} 19. Rad1 {[%clk 0:01:45.8]}
19... Be6 {[%clk 0:02:06.1]} 20. Qc2 {[%clk 0:01:27.2]} 20... Qe7 {[%clk
0:02:02.4]} 21. Nb1 {[%clk 0:01:21.3]} 21... f5 {[%clk 0:02:01.3]} 22. Nc3
{[%clk 0:01:20.4]} 22... b5 {[%clk 0:01:52.7]} 23. Bd5 {[%clk 0:01:15.3]} 23...
b4 {[%clk 0:01:47.8]} 24. Bxe6+ {[%clk 0:01:14.8]} 24... Qxe6 {[%clk 0:01:47.6]}
25. Nd5 {[%clk 0:01:15.5]} 25... Bh6 {[%clk 0:01:36.7]} 26. Qe2 {[%clk
0:01:11.3]} 26... Kg7 {[%clk 0:01:32.9]} 27. b3 {[%clk 0:01:01.8]} 27... e4
{[%clk 0:01:29.8]} 28. d4 {[%clk 0:00:59.1]} 28... cxd4 {[%clk 0:01:28.5]} 29.
Rxd4 {[%clk 0:00:59.7]} 29... Kh8 {[%clk 0:01:06.2]} 30. Rfd1 {[%clk 0:00:56.5]}
30... Bg7 {[%clk 0:01:03.9]} 31. Nf4 {[%clk 0:00:48.7]} 31... Qe7 {[%clk
0:01:00.8]} 32. Rd5 {[%clk 0:00:43.3]} 32... Rxd5 {[%clk 0:00:50.7]} 33. cxd5
{[%clk 0:00:41.7]} 33... Qd6 {[%clk 0:00:48.1]} 34. Rc1 {[%clk 0:00:39.1]} 34...
g5 {[%clk 0:00:43.7]} 35. Ne6 {[%clk 0:00:36.9]} 35... Qxd5 {[%clk 0:00:41.9]}
36. Nxg5 {[%clk 0:00:36.1]} 36... h6 {[%clk 0:00:37.3]} 37. Nh3 {[%clk
0:00:31.2]} 37... Bc3 {[%clk 0:00:34.7]} 38. Rd1 {[%clk 0:00:29.8]} 38... Qe6
{[%clk 0:00:26.8]} 39. Nf4 {[%clk 0:00:30.1]} 39... Qf6 {[%clk 0:00:24.5]} 40.
Qh5 {[%clk 0:00:29]} 40... Rc8 {[%clk 0:00:22.1]} 41. Rd7 {[%clk 0:00:25.4]}
41... Be5 {[%clk 0:00:17.5]} 42. Ng6+ {[%clk 0:00:25.3]} 42... Kg8 {[%clk
0:00:17.3]} 43. Ne7+ {[%clk 0:00:26]} 43... Kf8 {[%clk 0:00:15]} 44. Nxc8 {[%clk
0:00:26.3]} 1-0

[Event "Late-Titled-Tuesday-Blitz-January-16-2024"]
[Site "Chess.com"]
[Date "2024.01.16"]
[Round "5"]
[White "Fh2411"]
[Black "glebus008"]
[Result "1-0"]
[WhiteElo "2598"]
[BlackElo "2314"]
[TimeControl "180+1"]
[EndTime "14:53:16 PST"]
[Termination "Fh2411 won on time"]

1. d4 {[%clk 0:02:55.1]} 1... d5 {[%clk 0:02:59]} 2. Nf3 {[%clk 0:02:55.3]} 2...
Nf6 {[%clk 0:02:58.6]} 3. c4 {[%clk 0:02:55.1]} 3... e6 {[%clk 0:02:58.3]} 4.
Nc3 {[%clk 0:02:55.5]} 4... Be7 {[%clk 0:02:58]} 5. Bg5 {[%clk 0:02:51.6]} 5...
h6 {[%clk 0:02:53.9]} 6. Bh4 {[%clk 0:02:51]} 6... c5 {[%clk 0:02:53.3]} 7. e3
{[%clk 0:02:42.2]} 7... Nc6 {[%clk 0:02:44]} 8. dxc5 {[%clk 0:02:20]} 8... dxc4
{[%clk 0:02:37.6]} 9. Qxd8+ {[%clk 0:02:17.3]} 9... Nxd8 {[%clk 0:02:32.9]} 10.
Bxc4 {[%clk 0:02:14.9]} 10... Bxc5 {[%clk 0:02:32]} 11. O-O {[%clk 0:02:10]}
11... Be7 {[%clk 0:02:16.3]} 12. Rfd1 {[%clk 0:02:01.1]} 12... Bd7 {[%clk
0:02:08.5]} 13. Nb5 {[%clk 0:01:48]} 13... Rc8 {[%clk 0:01:52.9]} 14. b3 {[%clk
0:01:47.7]} 14... a6 {[%clk 0:01:48.4]} 15. Nd6+ {[%clk 0:01:46.6]} 15... Bxd6
{[%clk 0:01:48.4]} 16. Rxd6 {[%clk 0:01:47.5]} 16... g5 {[%clk 0:01:33.4]} 17.
Bg3 {[%clk 0:01:33.8]} 17... Ne4 {[%clk 0:01:33.3]} 18. Rd3 {[%clk 0:01:27]}
18... Nxg3 {[%clk 0:01:31.7]} 19. hxg3 {[%clk 0:01:25.8]} 19... b5 {[%clk
0:01:16.8]} 20. Ne5 {[%clk 0:01:18.1]} 20... bxc4 {[%clk 0:00:56.4]} 21. Nxc4
{[%clk 0:01:07.3]} 21... Ke7 {[%clk 0:00:35]} 22. a4 {[%clk 0:00:50.9]} 22...
Rc7 {[%clk 0:00:28.8]} 23. Rad1 {[%clk 0:00:47.8]} 23... Nb7 {[%clk 0:00:17.7]}
24. Nb6 {[%clk 0:00:38.7]} 24... Bc8 {[%clk 0:00:15.5]} 25. b4 {[%clk
0:00:35.8]} 25... f6 {[%clk 0:00:12.9]} 26. Na8 {[%clk 0:00:19.7]} 26... Rd7
{[%clk 0:00:11.9]} 27. Nb6 {[%clk 0:00:18.1]} 27... Rxd3 {[%clk 0:00:11.5]} 28.
Rxd3 {[%clk 0:00:19]} 28... Rd8 {[%clk 0:00:10.2]} 29. Rc3 {[%clk 0:00:19.7]}
29... Bd7 {[%clk 0:00:08.6]} 30. Rc7 {[%clk 0:00:20.1]} 30... Kd6 {[%clk
0:00:07.7]} 31. Rxb7 {[%clk 0:00:20]} 31... Bxa4 {[%clk 0:00:07.6]} 32. Nxa4
{[%clk 0:00:19.4]} 32... Rc8 {[%clk 0:00:07.6]} 33. Nc5 {[%clk 0:00:19.3]} 33...
Rc6 {[%clk 0:00:06.5]} 34. Ra7 {[%clk 0:00:18.9]} 34... Kd5 {[%clk 0:00:05.6]}
35. Rxa6 {[%clk 0:00:19]} 35... Kc4 {[%clk 0:00:05.6]} 36. Rxc6 {[%clk 0:00:19]}
1-0

[Event "Late-Titled-Tuesday-Blitz-January-16-2024"]
[Site "Chess.com"]
[Date "2024.01.16"]
[Round "5"]
[White "Maitreia"]
[Black "pooh2012"]
[Result "1-0"]
[WhiteElo "2727"]
[BlackElo "2543"]
[TimeControl "180+1"]
[EndTime "14:53:20 PST"]
[Termination "Maitreia won by resignation"]

1. c4 {[%clk 0:03:00.9]} 1... d5 {[%clk 0:02:53.5]} 2. cxd5 {[%clk 0:02:59.1]}
2... Nf6 {[%clk 0:02:53.5]} 3. Nc3 {[%clk 0:02:58.8]} 3... Nxd5 {[%clk
0:02:51.7]} 4. Nxd5 {[%clk 0:02:59.7]} 4... Qxd5 {[%clk 0:02:51.2]} 5. Nf3
{[%clk 0:03:00.4]} 5... g6 {[%clk 0:02:50.9]} 6. g3 {[%clk 0:03:00.6]} 6... Bg7
{[%clk 0:02:50.4]} 7. Bg2 {[%clk 0:03:01.2]} 7... Qd6 {[%clk 0:02:50.6]} 8. O-O
{[%clk 0:03:01.1]} 8... e5 {[%clk 0:02:46.3]} 9. d3 {[%clk 0:03:01.2]} 9... O-O
{[%clk 0:02:45.7]} 10. Be3 {[%clk 0:03:01]} 10... Re8 {[%clk 0:02:41.8]} 11. Qa4
{[%clk 0:03:00.3]} 11... Bd7 {[%clk 0:02:38.1]} 12. Qb3 {[%clk 0:02:56.5]} 12...
Bc6 {[%clk 0:02:37]} 13. Rac1 {[%clk 0:02:51.9]} 13... h6 {[%clk 0:02:29.3]} 14.
Nd2 {[%clk 0:02:41.9]} 14... Bxg2 {[%clk 0:02:15.5]} 15. Kxg2 {[%clk 0:02:42.8]}
15... b6 {[%clk 0:02:14.2]} 16. Ne4 {[%clk 0:02:32.7]} 16... Qd7 {[%clk
0:02:06.4]} 17. Bxh6 {[%clk 0:02:27.2]} 17... c5 {[%clk 0:01:51.8]} 18. Qc3
{[%clk 0:02:12.1]} 18... f5 {[%clk 0:01:40.7]} 19. Bxg7 {[%clk 0:02:09.5]} 19...
fxe4 {[%clk 0:01:34.2]} 20. Bxe5 {[%clk 0:01:50.2]} 20... exd3 {[%clk
0:01:23.2]} 21. Qc4+ {[%clk 0:01:21.5]} 21... Qf7 {[%clk 0:01:13.2]} 22. Qxf7+
{[%clk 0:01:10.3]} 22... Kxf7 {[%clk 0:01:12.4]} 23. Bxb8 {[%clk 0:01:11.2]}
23... dxe2 {[%clk 0:01:11.8]} 24. Rfe1 {[%clk 0:01:11.3]} 24... Raxb8 {[%clk
0:01:10.4]} 25. Rc2 {[%clk 0:01:11.9]} 25... Rbd8 {[%clk 0:01:04]} 26. Rcxe2
{[%clk 0:01:12.3]} 26... Rxe2 {[%clk 0:01:02.9]} 27. Rxe2 {[%clk 0:01:13.2]}
27... Rd3 {[%clk 0:01:02.3]} 28. h4 {[%clk 0:01:10.4]} 28... c4 {[%clk
0:00:58.5]} 29. g4 {[%clk 0:01:03.8]} 29... b5 {[%clk 0:00:56.8]} 30. f3 {[%clk
0:01:04]} 30... a5 {[%clk 0:00:49.6]} 31. a3 {[%clk 0:01:02.9]} 31... b4 {[%clk
0:00:49.3]} 32. axb4 {[%clk 0:01:03.8]} 32... axb4 {[%clk 0:00:49.7]} 33. Kg3
{[%clk 0:01:04.4]} 33... c3 {[%clk 0:00:38.8]} 34. bxc3 {[%clk 0:01:05.3]} 34...
bxc3 {[%clk 0:00:35.2]} 35. Re4 {[%clk 0:01:00.2]} 35... c2 {[%clk 0:00:27.8]}
36. Rc4 {[%clk 0:00:59.6]} 36... Rd2 {[%clk 0:00:28.4]} 37. Rc6 {[%clk 0:00:55]}
37... Ke7 {[%clk 0:00:21.5]} 38. Kf4 {[%clk 0:00:54.9]} 38... Re2 {[%clk
0:00:20.6]} 39. Kg5 {[%clk 0:00:48.2]} 39... Kf7 {[%clk 0:00:14.6]} 40. Rc7+
{[%clk 0:00:46.4]} 40... Ke6 {[%clk 0:00:11.5]} 41. Kxg6 {[%clk 0:00:44.6]}
41... Ke5 {[%clk 0:00:11.9]} 42. g5 {[%clk 0:00:42.1]} 42... Kf4 {[%clk
0:00:08.1]} 43. h5 {[%clk 0:00:39.6]} 43... Rg2 {[%clk 0:00:04.8]} 44. Rc4+
{[%clk 0:00:38.4]} 44... Kxf3 {[%clk 0:00:02.5]} 45. h6 {[%clk 0:00:38.4]} 45...
Ke3 {[%clk 0:00:02.6]} 46. h7 {[%clk 0:00:37.8]} 46... Rh2 {[%clk 0:00:02.9]}
47. Kg7 {[%clk 0:00:36.1]} 47... Kd3 {[%clk 0:00:02.7]} 48. Rxc2 {[%clk
0:00:35.8]} 48... Kxc2 {[%clk 0:00:02.5]} 49. h8=Q {[%clk 0:00:36.7]} 49... Rxh8
{[%clk 0:00:02]} 50. Kxh8 {[%clk 0:00:36.5]} 1-0

[Event "Late-Titled-Tuesday-Blitz-January-16-2024"]
[Site "Chess.com"]
[Date "2024.01.16"]
[Round "5"]
[White "reevecanada"]
[Black "vladislavkovalev"]
[Result "0-1"]
[WhiteElo "2634"]
[BlackElo "2844"]
[TimeControl "180+1"]
[EndTime "14:53:21 PST"]
[Termination "vladislavkovalev won by checkmate"]

1. e4 {[%clk 0:02:56.6]} 1... e5 {[%clk 0:03:00.3]} 2. Nf3 {[%clk 0:02:52]} 2...
Nc6 {[%clk 0:03:00.6]} 3. Bc4 {[%clk 0:02:51]} 3... Nf6 {[%clk 0:02:59.6]} 4. d3
{[%clk 0:02:49.4]} 4... Bc5 {[%clk 0:03:00.1]} 5. c3 {[%clk 0:02:49.4]} 5... d6
{[%clk 0:03:00.5]} 6. O-O {[%clk 0:02:47]} 6... a6 {[%clk 0:03:00.8]} 7. a4
{[%clk 0:02:46.6]} 7... h6 {[%clk 0:03:01]} 8. Re1 {[%clk 0:02:45.8]} 8... Ba7
{[%clk 0:03:01.4]} 9. Nbd2 {[%clk 0:02:45.5]} 9... g5 {[%clk 0:03:01.8]} 10. Nf1
{[%clk 0:02:43.8]} 10... g4 {[%clk 0:03:02.2]} 11. N3d2 {[%clk 0:02:37]} 11...
h5 {[%clk 0:03:02.6]} 12. b4 {[%clk 0:02:33.6]} 12... h4 {[%clk 0:02:59.4]} 13.
b5 {[%clk 0:02:24.8]} 13... Ne7 {[%clk 0:02:53.9]} 14. Ne3 {[%clk 0:02:18.5]}
14... Ng6 {[%clk 0:02:43.8]} 15. bxa6 {[%clk 0:02:16.4]} 15... bxa6 {[%clk
0:02:42.5]} 16. Ndf1 {[%clk 0:02:10.3]} 16... g3 {[%clk 0:02:17.7]} 17. hxg3
{[%clk 0:02:05.4]} 17... hxg3 {[%clk 0:02:18.1]} 18. Nxg3 {[%clk 0:02:05.4]}
18... Nf4 {[%clk 0:01:46.9]} 19. d4 {[%clk 0:01:53.8]} 19... Nxe4 {[%clk
0:01:31.8]} 20. Nxe4 {[%clk 0:01:08]} 20... Qh4 {[%clk 0:01:31.6]} 21. f3 {[%clk
0:01:07.9]} 21... f6 {[%clk 0:00:33.7]} 22. Qd2 {[%clk 0:00:51.3]} 22... f5
{[%clk 0:00:22.2]} 23. Nf2 {[%clk 0:00:22.1]} 23... Bb7 {[%clk 0:00:15.3]} 24.
Rb1 {[%clk 0:00:20.4]} 24... Bxf3 {[%clk 0:00:10]} 25. gxf3 {[%clk 0:00:19.7]}
25... Qg3+ {[%clk 0:00:10.7]} 26. Kf1 {[%clk 0:00:19.2]} 26... Qxf3 {[%clk
0:00:11.4]} 27. Kg1 {[%clk 0:00:15.8]} 27... Qg3+ {[%clk 0:00:05.4]} 28. Kf1
{[%clk 0:00:15.8]} 28... Rh2 {[%clk 0:00:06.1]} 29. Rd1 {[%clk 0:00:09.1]} 29...
Qf3 {[%clk 0:00:03.8]} 30. Kg1 {[%clk 0:00:07.8]} 30... Rg2+ {[%clk 0:00:04.5]}
31. Kf1 {[%clk 0:00:08]} 31... Rh2 {[%clk 0:00:04.5]} 32. Kg1 {[%clk 0:00:07.9]}
32... Rxf2 {[%clk 0:00:04.1]} 33. Qxf2 {[%clk 0:00:06.3]} 33... Nh3+ {[%clk
0:00:04.9]} 34. Kh2 {[%clk 0:00:06.9]} 34... Nxf2 {[%clk 0:00:04.2]} 35. Rf1
{[%clk 0:00:07.6]} 35... Kd7 {[%clk 0:00:03.9]} 36. Ng2 {[%clk 0:00:05.3]} 36...
Rh8+ {[%clk 0:00:03.5]} 37. Kg1 {[%clk 0:00:05.9]} 37... Nh3+ {[%clk 0:00:04.2]}
38. Kh2 {[%clk 0:00:04.4]} 38... Nf4+ {[%clk 0:00:05]} 39. Nh4 {[%clk
0:00:05.1]} 39... Qg2# {[%clk 0:00:04.1]} 0-1

[Event "Late-Titled-Tuesday-Blitz-January-16-2024"]
[Site "Chess.com"]
[Date "2024.01.16"]
[Round "5"]
[White "MKlose11"]
[Black "secretsuperstar7"]
[Result "1-0"]
[WhiteElo "2636"]
[BlackElo "2498"]
[TimeControl "180+1"]
[EndTime "14:53:23 PST"]
[Termination "MKlose11 won by resignation"]

1. e4 {[%clk 0:02:57.5]} 1... c5 {[%clk 0:02:59.3]} 2. Nc3 {[%clk 0:02:57.3]}
2... Nc6 {[%clk 0:02:52.7]} 3. g3 {[%clk 0:02:57.6]} 3... g6 {[%clk 0:02:52.8]}
4. Bg2 {[%clk 0:02:57.9]} 4... Bg7 {[%clk 0:02:53.5]} 5. d3 {[%clk 0:02:58.5]}
5... Nf6 {[%clk 0:02:54.2]} 6. h3 {[%clk 0:02:58]} 6... Rb8 {[%clk 0:02:51.6]}
7. Be3 {[%clk 0:02:58.1]} 7... d6 {[%clk 0:02:51.3]} 8. Qd2 {[%clk 0:02:58.4]}
8... h6 {[%clk 0:02:48]} 9. Nge2 {[%clk 0:02:57.6]} 9... b5 {[%clk 0:02:48.3]}
10. O-O {[%clk 0:02:57.3]} 10... b4 {[%clk 0:02:48.3]} 11. Nd1 {[%clk
0:02:57.5]} 11... Ba6 {[%clk 0:02:46.3]} 12. f4 {[%clk 0:02:57.6]} 12... Qc7
{[%clk 0:02:42.3]} 13. a3 {[%clk 0:02:52.6]} 13... b3 {[%clk 0:02:38.8]} 14. c3
{[%clk 0:02:50]} 14... O-O {[%clk 0:02:38.5]} 15. g4 {[%clk 0:02:48.2]} 15...
Nd7 {[%clk 0:02:28.7]} 16. h4 {[%clk 0:02:45]} 16... e6 {[%clk 0:02:18.4]} 17.
Ng3 {[%clk 0:02:41.4]} 17... Qd8 {[%clk 0:02:17.2]} 18. h5 {[%clk 0:02:41.2]}
18... Qh4 {[%clk 0:02:04.7]} 19. Bf2 {[%clk 0:02:30]} 19... Qd8 {[%clk
0:02:01.1]} 20. hxg6 {[%clk 0:02:23.8]} 20... fxg6 {[%clk 0:02:00.9]} 21. Ne3
{[%clk 0:02:21]} 21... Ne7 {[%clk 0:01:54.7]} 22. f5 {[%clk 0:02:15.2]} 22...
exf5 {[%clk 0:01:52.8]} 23. gxf5 {[%clk 0:02:15.3]} 23... Ne5 {[%clk 0:01:52.7]}
24. c4 {[%clk 0:02:09.5]} 24... Bc8 {[%clk 0:01:49.6]} 25. fxg6 {[%clk
0:02:05.2]} 25... N7xg6 {[%clk 0:01:48.1]} 26. Nef5 {[%clk 0:02:04.6]} 26... Ng4
{[%clk 0:01:41.8]} 27. Nxg7 {[%clk 0:01:43.1]} 27... Kxg7 {[%clk 0:01:42.7]} 28.
Nf5+ {[%clk 0:01:34.2]} 28... Bxf5 {[%clk 0:01:38.8]} 29. exf5 {[%clk
0:01:35.1]} 29... Rxf5 {[%clk 0:01:36.7]} 30. Bg3 {[%clk 0:01:34.4]} 30... Rg5
{[%clk 0:01:24.5]} 31. d4 {[%clk 0:01:21.7]} 31... cxd4 {[%clk 0:01:22.5]} 32.
Qxd4+ {[%clk 0:01:20.1]} 32... N4e5 {[%clk 0:01:22.6]} 33. Bf4 {[%clk
0:00:59.2]} 33... Rg4 {[%clk 0:01:12.2]} 34. Rae1 {[%clk 0:00:53.1]} 34... Qh4
{[%clk 0:01:07.9]} 35. Rxe5 {[%clk 0:00:42.8]} 35... dxe5 {[%clk 0:01:00.1]} 36.
Bxe5+ {[%clk 0:00:41.9]} 36... Nxe5 {[%clk 0:00:25.6]} 37. Qxe5+ {[%clk
0:00:39.4]} 37... Kg6 {[%clk 0:00:19.4]} 38. Qxb8 {[%clk 0:00:30.2]} 38... Rxg2+
{[%clk 0:00:12.8]} 39. Kxg2 {[%clk 0:00:31.1]} 39... Qe4+ {[%clk 0:00:13]} 40.
Rf3 {[%clk 0:00:28.4]} 40... Qe2+ {[%clk 0:00:12.9]} 41. Rf2 {[%clk 0:00:28.8]}
41... Qe4+ {[%clk 0:00:12.8]} 42. Kh2 {[%clk 0:00:26.8]} 42... Qh4+ {[%clk
0:00:12.4]} 43. Kg1 {[%clk 0:00:27.1]} 43... Qxc4 {[%clk 0:00:09.7]} 44. Qe8+
{[%clk 0:00:26.2]} 44... Kg5 {[%clk 0:00:08.6]} 45. Qe7+ {[%clk 0:00:25.9]}
45... Kg6 {[%clk 0:00:07.7]} 46. Qf6+ {[%clk 0:00:25.7]} 46... Kh5 {[%clk
0:00:05]} 47. Qf7+ {[%clk 0:00:26.6]} 47... Kg5 {[%clk 0:00:04.5]} 48. Qxc4
{[%clk 0:00:26.3]} 1-0

[Event "Late-Titled-Tuesday-Blitz-January-16-2024"]
[Site "Chess.com"]
[Date "2024.01.16"]
[Round "5"]
[White "Piotrek1979"]
[Black "Byniolus"]
[Result "0-1"]
[WhiteElo "2420"]
[BlackElo "2754"]
[TimeControl "180+1"]
[EndTime "14:53:27 PST"]
[Termination "Byniolus won by resignation"]

1. e4 {[%clk 0:03:00.9]} 1... d6 {[%clk 0:02:59.5]} 2. d4 {[%clk 0:02:59.1]}
2... Nf6 {[%clk 0:02:59.8]} 3. Nc3 {[%clk 0:02:58.9]} 3... c6 {[%clk 0:03:00.1]}
4. f4 {[%clk 0:02:55.4]} 4... Qb6 {[%clk 0:02:59.9]} 5. Nf3 {[%clk 0:02:50.2]}
5... Bg4 {[%clk 0:02:59]} 6. a3 {[%clk 0:02:28.7]} 6... e6 {[%clk 0:02:53.5]} 7.
h3 {[%clk 0:02:25.7]} 7... Bxf3 {[%clk 0:02:52.2]} 8. Qxf3 {[%clk 0:02:26.6]}
8... d5 {[%clk 0:02:52.6]} 9. e5 {[%clk 0:02:23.7]} 9... Nfd7 {[%clk 0:02:52.6]}
10. Bd3 {[%clk 0:01:53.9]} 10... c5 {[%clk 0:02:43.7]} 11. O-O {[%clk
0:01:36.8]} 11... Nc6 {[%clk 0:02:37.9]} 12. dxc5 {[%clk 0:01:30.8]} 12... Nxc5
{[%clk 0:02:38.8]} 13. Kh1 {[%clk 0:01:27.4]} 13... Nxd3 {[%clk 0:02:36.3]} 14.
Qxd3 {[%clk 0:01:17.7]} 14... Be7 {[%clk 0:02:18.9]} 15. f5 {[%clk 0:01:00]}
15... O-O-O {[%clk 0:02:03.9]} 16. fxe6 {[%clk 0:00:57.2]} 16... fxe6 {[%clk
0:02:04.8]} 17. Qe3 {[%clk 0:00:44.8]} 17... d4 {[%clk 0:01:50.2]} 18. Qg3
{[%clk 0:00:44.7]} 18... dxc3 {[%clk 0:01:48.5]} 19. bxc3 {[%clk 0:00:40.8]}
19... Rhf8 {[%clk 0:01:36.7]} 20. Be3 {[%clk 0:00:37.8]} 20... Rxf1+ {[%clk
0:01:28.6]} 21. Rxf1 {[%clk 0:00:36.1]} 21... Bc5 {[%clk 0:01:29.5]} 22. Bg5
{[%clk 0:00:32.8]} 22... Rf8 {[%clk 0:01:24.4]} 23. Rxf8+ {[%clk 0:00:30.5]}
23... Bxf8 {[%clk 0:01:24.5]} 24. Qf4 {[%clk 0:00:31.4]} 24... Be7 {[%clk
0:00:51.2]} 25. Bxe7 {[%clk 0:00:20.1]} 25... Nxe7 {[%clk 0:00:52.1]} 26. Qf7
{[%clk 0:00:19.6]} 26... Kd7 {[%clk 0:00:21]} 27. Qxg7 {[%clk 0:00:19]} 27... h5
{[%clk 0:00:19.5]} 28. Qh6 {[%clk 0:00:15.9]} 28... Qb1+ {[%clk 0:00:15.7]} 29.
Kh2 {[%clk 0:00:15.1]} 29... Qxc2 {[%clk 0:00:15.9]} 30. Qxh5 {[%clk 0:00:14.1]}
30... Qxc3 {[%clk 0:00:15]} 31. Qd1+ {[%clk 0:00:13.7]} 31... Nd5 {[%clk
0:00:14]} 32. Qe2 {[%clk 0:00:13.8]} 32... a6 {[%clk 0:00:07.6]} 33. a4 {[%clk
0:00:13.4]} 33... Qe3 {[%clk 0:00:05.9]} 34. Qb2 {[%clk 0:00:11.8]} 34... Qf4+
{[%clk 0:00:05]} 35. Kh1 {[%clk 0:00:06.5]} 35... Kc8 {[%clk 0:00:04.6]} 36.
Qc2+ {[%clk 0:00:05.6]} 36... Kb8 {[%clk 0:00:04.7]} 37. Qb2 {[%clk 0:00:06.5]}
37... Qf1+ {[%clk 0:00:04.1]} 38. Kh2 {[%clk 0:00:06.2]} 38... Qf4+ {[%clk
0:00:05]} 39. Kh1 {[%clk 0:00:06.5]} 39... Qxa4 {[%clk 0:00:05.8]} 40. Qc2
{[%clk 0:00:06.5]} 40... Qxc2 {[%clk 0:00:05.8]} 0-1